fUSD/lending_fUSD_20250614
["ID","MTS","AMOUNT","RATE_DAILY","PERIOD"]
[365741742,1749863447977,-151.0,0.00017893,2]
[365741743,1749863447987,-151.0,0.00017893,2]
[365741746,1749863447997,-151.0,0.00017893,2]
[365741747,1749863448006,-151.0,0.00017893,2]
[365741748,1749863448015,-237.337908,0.00017893,2]
[365741749,1749863448025,-234.525584,0.00017893,2]
[365741750,1749863448035,-151.0,0.00017893,2]
[365741751,1749863448044,-151.0,0.00017893,2]
[365741752,1749863448053,-151.0,0.00017893,2]
[365741753,1749863448062,-278.33925,0.00017893,2]
[365741754,1749863448072,-108651.3183825,0.00017893,2]
[365741755,1749863448082,-179.815605,0.00017893,2]
[365741756,1749863448091,-179.815605,0.00017893,2]
[365741757,1749863448100,-179.815605,0.00017893,2]
[365741758,1749863448115,-179.815605,0.00017893,2]
[365741759,1749863448126,-179.815605,0.00017893,2]
[365741760,1749863448136,-179.815605,0.00017893,2]
[365741761,1749863448146,-179.815605,0.00017893,2]
[365741763,1749863448156,-179.815605,0.00017893,2]
[365741764,1749863448166,-179.815605,0.00017893,2]
[365741765,1749863448175,-179.815605,0.00017893,2]
[365741766,1749863448185,-179.98755,0.00017893,2]
[365741768,1749863448194,-179.98755,0.00017893,2]
[365741769,1749863448204,-179.98755,0.00017893,2]
[365741770,1749863448213,-179.98755,0.00017893,2]
[365741771,1749863448223,-179.98755,0.00017893,2]
[365741772,1749863448234,-179.98755,0.00017893,2]
[365741773,1749863448243,-179.98755,0.00017893,2]
[365741774,1749863448253,-179.98755,0.00017893,2]
[365741775,1749863448262,-179.98755,0.00017893,2]
[365741776,1749863448271,-179.98755,0.00017893,2]
[365741777,1749863448281,-25991.927283,0.00017893,2]
[365741778,1749863448291,-4290.8918274,0.00017893,2]
[365741780,1749863448301,-151.0,0.00017893,2]
[365741782,1749863448313,-151.0,0.00017893,2]
[365741784,1749863448323,-151.0,0.00017893,2]
[365741786,1749863448333,-151.0,0.00017893,2]
[365741787,1749863448343,-151.0,0.00017893,2]
[365741788,1749863448353,-151.0,0.00017893,2]
[365741789,1749863448363,-151.0,0.00017893,2]
[365741790,1749863448373,-151.0,0.00017893,2]
[365741791,1749863448384,-151.0,0.00017893,2]
[365741792,1749863448393,-224.711784,0.00017893,2]
[365741793,1749863448403,-151.0,0.00017893,2]
[365741794,1749863448413,-151.0,0.00017893,2]
[365741795,1749863448423,-151.0,0.00017893,2]
[365741796,1749863448432,-151.0,0.00017893,2]
[365741797,1749863448442,-228.502388,0.00017893,2]
[365741798,1749863448452,-7850.6881932,0.00017893,2]
[365741799,1749863448461,-296.098634,0.00017893,2]
[365741800,1749863448472,-296.098634,0.00017893,2]
[365741801,1749863448481,-296.098634,0.00017893,2]
[365741802,1749863448491,-296.098634,0.00017893,2]
[365741803,1749863448502,-296.098634,0.00017893,2]
[365741804,1749863448511,-430.6000602,0.00017893,2]
[365741805,1749863448521,-296.098634,0.00017893,2]
[365741806,1749863448531,-296.098634,0.00017893,2]
[365741807,1749863448540,-296.098634,0.00017893,2]
[365741808,1749863448550,-296.098634,0.00017893,2]
[365741809,1749863448559,-296.098634,0.00017893,2]
[365741810,1749863448569,-151.0,0.00017893,2]
[365741811,1749863448578,-151.0,0.00017893,2]
[365741812,1749863448587,-151.0,0.00017893,2]
[365741813,1749863448596,-151.0,0.00017893,2]
[365741814,1749863448606,-151.0,0.00017893,2]
[365741815,1749863448615,-14222.2658016,0.00017893,2]
[365741816,1749863448625,-151.0,0.00017893,2]
[365741817,1749863448635,-151.0,0.00017893,2]
[365741818,1749863448645,-151.0,0.00017893,2]
[365741819,1749863448655,-282.02819,0.00017893,2]
[365741820,1749863448665,-156.28690306,0.000179,2]
[365741821,1749863448674,-151.0,0.00017905,2]
[365741822,1749863448684,-156.394952,0.00017905,2]
[365741823,1749863448693,-156.394952,0.00017905,2]
[365741824,1749863448702,-152.899489,0.00017905,2]
[365741825,1749863448711,-152.899489,0.00017905,2]
[365741826,1749863448721,-150.0,0.00017929,2]
[365741827,1749863448731,-150.0,0.00017929,2]
[365741828,1749863448740,-151.0,0.00017929,2]
[365741829,1749863448749,-151.0,0.00017929,2]
[365741830,1749863448759,-151.0,0.00017929,2]
[365741831,1749863448768,-151.0,0.00017929,2]
[365741832,1749863448778,-151.0,0.00017929,2]
[365741833,1749863448788,-252.236156,0.00017929,2]
[365741834,1749863448798,-318.410505,0.00017929,2]
[365741835,1749863448807,-318.410505,0.00017929,2]
[365741836,1749863448818,-318.410505,0.00017929,2]
[365741837,1749863448828,-318.410505,0.00017929,2]
[365741838,1749863448838,-151.0,0.00017929,2]
[365741839,1749863448848,-156.394952,0.00017929,2]
[365741840,1749863448857,-156.394952,0.00017929,2]
[365741841,1749863448867,-156.394952,0.00017929,2]
[365741842,1749863448876,-156.394952,0.00017929,2]
[365741843,1749863448887,-179.815605,0.00017929,2]
[365741844,1749863448896,-179.815601,0.00017929,2]
[365741845,1749863448906,-151.0,0.00017929,2]
[365741846,1749863448915,-179.98755,0.00017934,2]
[365741847,1749863448925,-179.987552,0.00017934,2]
[365741848,1749863448936,-151.0,0.00017934,2]
[365741849,1749863448945,-833.54012458,0.00017934,2]
[365741850,1749863448955,-179.018791,0.00017953,2]
[365741851,1749863448964,-151.0,0.00017953,2]
[365741852,1749863448974,-151.0,0.00017953,2]
[365741853,1749863448984,-318.410505,0.00017953,2]
[365741854,1749863448993,-318.410505,0.00017953,2]
[365741855,1749863449003,-296.098634,0.00017953,2]
[365741856,1749863449013,-296.098635,0.00017953,2]
[365741857,1749863449023,-154.82,0.00018,2]
[365741858,1749863449032,-250.0,0.00018079,2]
[365741859,1749863449042,-175.14,0.00018212,2]
[365741860,1749863449051,-175.14,0.00018258,2]
[365741861,1749863449061,-175.14,0.00018303,2]
[365741862,1749863449071,-166.1,0.00018326,2]
[365741863,1749863449080,-1680.0,0.00018333,2]
[365741864,1749863449090,-152.899489,0.00018348,2]
[365741865,1749863449099,-152.899489,0.00018348,2]
[365741866,1749863449109,-1000.0,0.00018348,2]
[365741867,1749863449119,-1000.0,0.00018348,2]
[365741868,1749863449129,-151.0,0.00018348,2]
[365741869,1749863449139,-448.42859503,0.00018348,2]
[365741870,1749863449856,-528.59159516,0.00018348,2]
[365741875,1749863614658,152.01,0.00013699,2]
[365741878,1749863742140,334.0,0.00016,2]
[365741883,1749864081269,4000.0,0.00016,2]
[365741889,1749864332020,467.17108595,0.0002,120]
[365741892,1749864356025,2339.97386676,0.00017,120]
[365741924,1749864470077,2020.0,0.0002,120]
[365741925,1749864508715,190.45329435,0.0002,120]
[365741929,1749864514351,2601.0,0.000145,120]
[365741930,1749864516652,518.20399452,0.0001,120]
[365741941,1749864575007,595.8,0.00015681,2]
[365741944,1749864610990,150.0,0.0002,30]
[365741945,1749864619332,152.01,0.00013699,2]
[365741953,1749864632105,-150.0,0.000168,2]
[365741954,1749864632115,-500.0,0.000169,2]
[365741955,1749864632125,-150.0,0.0001699,2]
[365741957,1749864632135,-1121.87169347,0.00016998,2]
[365741959,1749864632146,-78.12830653,0.00016998,2]
[365741961,1749864632155,-151.0,0.00016999,2]
[365741963,1749864632164,-70.87169347,0.00016999,2]
[365741964,1749864632184,-99.19615853,0.00016999,2]
[365741965,1749864632194,-170.067852,0.00016999,2]
[365741966,1749864632203,-151.0,0.00016999,2]
[365741967,1749864632212,-170.067852,0.00017,2]
[365741968,1749864632221,-170.067852,0.00017,2]
[365741969,1749864632231,-103.74289639,0.00017026,2]
[365741970,1749864632242,-66.32495561,0.00017026,2]
[365741971,1749864632251,-170.067852,0.00017026,2]
[365741972,1749864632260,-170.067852,0.00017237,2]
[365741973,1749864632270,-170.067852,0.00017237,2]
[365741974,1749864632279,-152.31,0.00017546,2]
[365741975,1749864632288,-170.067852,0.00017558,2]
[365741976,1749864632297,-170.067852,0.00017558,2]
[365741977,1749864632307,-162.8771048,0.00017638,2]
[365741978,1749864632318,-37.1228952,0.00017638,2]
[365741979,1749864632327,-541.46850708,0.00017657,2]
[365741980,1749864632339,-124.53149292,0.00017657,2]
[365741981,1749864632348,-1000.0,0.00017664,2]
[365741982,1749864632357,-150.0,0.000177,2]
[365741983,1749864632366,-1454.06109628,0.000178,2]
[365741984,1749864632378,-415.87469936,0.000178,2]
[365741985,1749864632389,-130.06420436,0.000178,2]
[365741986,1749864632398,-558.32221638,0.00017869,2]
[365741987,1749864632408,-500.0,0.00017873,2]
[365741988,1749864632417,-200.0,0.00017876,7]
[365741990,1749864632426,-170.067852,0.00017893,2]
[365741992,1749864632436,-170.067852,0.00017893,2]
[365741994,1749864632446,-170.067852,0.00017893,2]
[365741996,1749864632455,-170.067852,0.00017893,2]
[365741998,1749864632464,-163.73088566,0.00017893,2]
[365742000,1749864632476,-6.33696634,0.00017893,2]
[365742001,1749864632486,-170.067852,0.00017893,2]
[365742002,1749864632495,-170.067852,0.00017893,2]
[365742003,1749864632504,-170.067852,0.00017893,2]
[365742004,1749864632514,-58.05947766,0.00017893,2]
[365742006,1749864632526,-112.00837434,0.00017893,2]
[365742008,1749864632535,-170.067848,0.00017893,2]
[365742010,1749864632545,-2394.40771744,0.000179,2]
[365742012,1749864632555,-595.8,0.00017945,2]
[365742014,1749864632564,-150.0,0.00017948,2]
[365742016,1749864632574,-150.0,0.00017948,2]
[365742018,1749864632583,-150.0,0.00017948,2]
[365742020,1749864632593,-253.20959988,0.00017948,2]
[365742022,1749864632602,-150.0,0.00017948,2]
[365742024,1749864632611,-204.34173649,0.00017948,2]
[365742026,1749864632620,-150.0,0.00017948,2]
[365742028,1749864632629,-1683.6325103,0.00017953,2]
[365742030,1749864632641,-383.12875825,0.00017953,2]
[365742032,1749864632655,-558.96873145,0.00017953,2]
[365742034,1749864632665,-150.0,0.00017975,2]
[365742036,1749864632675,-150.0,0.00017975,2]
[365742038,1749864632684,-150.0,0.00017975,2]
[365742040,1749864632695,-150.0,0.00017975,2]
[365742042,1749864632704,-150.0,0.00017975,2]
[365742045,1749864632714,-150.0,0.0001799,2]
[365742046,1749864632723,-2827.97330812,0.00018,2]
[365742048,1749864632733,-160.09,0.00018,2]
[365742051,1749864632743,-154.82,0.00018,2]
[365742053,1749864632752,-200.0,0.00018003,2]
[365742055,1749864632762,-200.0,0.00018003,2]
[365742056,1749864632771,-200.0,0.00018003,2]
[365742058,1749864632780,-200.0,0.00018003,2]
[365742061,1749864632789,-200.0,0.00018003,2]
[365742063,1749864632799,-403.75507534,0.00018201,2]
[365742065,1749864632810,-96.24492466,0.00018201,2]
[365742067,1749864632819,-200.0,0.00018201,2]
[365742068,1749864632828,-150.0,0.000183,2]
[365742071,1749864632838,-350.0,0.0001833,2]
[365742072,1749864632847,-2.08306352,0.00018339,2]
[365742075,1749864632858,-183.36860498,0.00018339,2]
[365742076,1749864632867,-2098.42324496,0.00018339,2]
[365742465,1749864638268,-150.0,0.000175,2]
[365742466,1749864638278,-1028.9475446,0.00018339,2]
[365742534,1749864640353,-1293.16940294,0.000175,2]
[365742535,1749864640365,-706.83059706,0.000175,2]
[365742536,1749864640375,-106.72371054,0.00018339,2]
[365742537,1749864640383,-737.86314639,0.00018339,2]
[365742538,1749864640444,-840.16181909,0.00018339,2]
[365742539,1749864640455,-269.98464382,0.00018339,2]
[365742540,1749864640464,-5185.04301227,0.00018339,2]
[365742541,1749864640526,-2775.11611073,0.00018339,2]
[365742542,1749864640535,-4002.7225028,0.00018339,2]
[365742543,1749864640545,-6045.145885,0.00018339,2]
[365742544,1749864640555,-181.7153512,0.00018339,2]
[365742545,1749864640564,-2108.81806853,0.00018339,2]
[365742553,1749864643375,-24343.1092651,0.00018339,2]
[365742555,1749864646507,-3088.05444243,0.00018339,2]
[365742557,1749864646518,-254.5780592,0.00018339,2]
[365742560,1749864646530,-3010.22088828,0.00018339,2]
[365742563,1749864813483,150.0,0.00016001,5]
[365742564,1749864887614,1021.0,0.0002,30]
[365742565,1749865144718,1612.0,0.0002,120]
[365742567,1749865451764,234.0,0.00015889,2]
[365742588,1749865648090,163.06,0.00013699,2]
[365742592,1749865661617,2258.11,0.00015889,2]
[365742593,1749865667487,597.54,0.00014994,2]
[365742594,1749865716980,200.0,0.0001581,2]
[365742595,1749865811907,232.0,0.00015334,2]
[365742596,1749865812198,232.0,0.00015785,2]
[365742603,1749865832258,-232.0,0.00016237,3]
[365742604,1749865832267,-232.0,0.00016688,3]
[365742605,1749865832276,-154.35,0.00016884,7]
[365742606,1749865832285,-195.27,0.00016933,2]
[365742607,1749865832294,-250.2,0.00016961,2]
[365742608,1749865832303,-249.85,0.00016961,2]
[365742609,1749865832312,-245.56,0.00016961,2]
[365742610,1749865832321,-248.49,0.00016961,2]
[365742611,1749865832330,-1000.0,0.00016968,2]
[365742612,1749865832338,-232.0,0.00017139,4]
[365742613,1749865832347,-597.54,0.00017258,2]
[365742614,1749865832357,-232.0,0.0001759,4]
[365742615,1749865832366,-190.39,0.00017597,2]
[365742616,1749865832375,-300.0,0.00017797,2]
[365742617,1749865832385,-1200.0,0.00017797,2]
[365742618,1749865832394,-300.0,0.00017798,2]
[365742619,1749865832403,-250.16,0.00017798,2]
[365742620,1749865832412,-247.33,0.00017798,2]
[365742621,1749865832421,-248.84,0.00017799,2]
[365742622,1749865832430,-246.9,0.00017799,2]
[365742623,1749865832439,-302.24,0.00017799,2]
[365742624,1749865832448,-250.29,0.00017799,2]
[365742625,1749865832457,-249.25,0.00017799,2]
[365742626,1749865832466,-246.96,0.00017799,2]
[365742627,1749865832475,-305.76,0.00017799,2]
[365742628,1749865832484,-250.02,0.00017799,2]
[365742629,1749865832493,-246.42,0.00017799,2]
[365742630,1749865832502,-251.29,0.00017799,2]
[365742631,1749865832511,-305.33,0.00017799,2]
[365742632,1749865832520,-96.05550896,0.00017799,2]
[365742633,1749865832535,-155.52449104,0.00017799,2]
[365742634,1749865832544,-178.98298158,0.00017799,2]
[365743220,1749865840516,-69.68701842,0.00017799,2]
[365743222,1749865840526,-253.84,0.00017799,2]
[365743224,1749865840536,-304.48,0.00017799,2]
[365743226,1749865840545,-248.44,0.00017799,2]
[365743228,1749865840554,-253.89,0.00017799,2]
[365743230,1749865840563,-247.13,0.00017799,2]
[365743232,1749865840572,-259.34334625,0.00017799,2]
[365743470,1749865843331,-170.51,0.00017199,2]
[365743473,1749865843343,-43.14665375,0.00017799,2]
[365743475,1749865843355,-245.7,0.00017799,2]
[365743477,1749865843367,-246.68,0.00017799,2]
[365743479,1749865843379,-249.43,0.00017799,2]
[365743481,1749865843390,-305.56,0.00017799,2]
[365743483,1749865843402,-248.07,0.00017799,2]
[365743486,1749865843413,-252.16,0.00017799,2]
[365743488,1749865843425,-248.98,0.00017799,2]
[365743490,1749865843436,-303.87,0.00017799,2]
[365743492,1749865843448,-253.9,0.00017799,2]
[365743494,1749865843459,-247.08,0.00017799,2]
[365743496,1749865843470,-252.98,0.00017799,2]
[365743499,1749865843481,-304.99,0.00017799,2]
[365743501,1749865843493,-253.55,0.00017799,2]
[365743503,1749865843504,-246.96,0.00017799,2]
[365743505,1749865843515,-707.06176282,0.00017799,2]
[365743507,1749865843527,-245.59,0.00017799,2]
[365743509,1749865843538,-248.13,0.00017799,2]
[365743512,1749865843549,-302.27,0.00017799,2]
[365743514,1749865843560,-254.32,0.00017799,2]
[365743516,1749865843571,-245.35,0.00017799,2]
[365743518,1749865843582,-253.88,0.00017799,2]
[365743520,1749865843593,-249.71,0.00017799,2]
[365743522,1749865843603,-305.53,0.00017799,2]
[365743524,1749865843615,-254.66,0.00017799,2]
[365743527,1749865843626,-246.81,0.00017799,2]
[365743529,1749865843637,-300.04,0.00017799,2]
[365743531,1749865843648,-2000.0,0.000178,2]
[365743533,1749865843660,-248.89,0.000178,2]
[365743535,1749865843671,-304.69,0.000178,2]
[365743538,1749865843682,-252.24,0.000178,2]
[365743540,1749865843693,-253.69,0.000178,2]
[365743542,1749865843704,-248.62,0.000178,2]
[365743544,1749865843715,-303.66,0.000178,2]
[365743546,1749865843727,-249.37,0.000178,2]
[365743549,1749865843738,-254.94,0.000178,2]
[365743551,1749865843750,-250.74,0.000178,2]
[365743553,1749865843761,-300.7,0.000178,2]
[365743555,1749865843773,-248.61,0.000178,2]
[365743557,1749865843784,-304.28,0.00017889,2]
[365743559,1749865843795,-248.59,0.00017889,2]
[365743562,1749865843806,-301.69,0.00017889,2]
[365743564,1749865843817,-251.53,0.00017889,2]
[365743566,1749865843827,-248.51,0.00017889,2]
[365743568,1749865843838,-247.99,0.00017889,2]
[365743570,1749865843850,-247.12,0.00017889,2]
[365743572,1749865843860,-251.88,0.00017889,2]
[365743574,1749865843872,-250.26,0.00017889,2]
[365743577,1749865843883,-156.23106751,0.00017889,2]
[365743580,1749865843905,-148.09893249,0.00017889,2]
[365743582,1749865843916,-252.75,0.00017889,2]
[365743584,1749865843929,-245.18,0.00017889,2]
[365743587,1749865843940,-250.06,0.00017889,2]
[365743589,1749865843951,-245.68,0.00017889,2]
[365743591,1749865843962,-248.67,0.00017889,2]
[365743593,1749865843973,-197.54944554,0.00017889,2]
[365743619,1749865948664,824.43,0.0001738,120]
[365743624,1749866679163,427.0,0.00016,2]
[365743625,1749866683964,154.9,0.00013699,2]
[365743627,1749866742315,165.91702117,0.0001592,2]
[365743642,1749866892348,218.0,0.00015041,2]
[365743643,1749866892642,218.0,0.00015495,2]
[365743644,1749866892910,218.0,0.0001595,3]
[365743646,1749866991816,204.63,0.0002,30]
[365743648,1749867031365,-218.0,0.00016404,3]
[365743649,1749867031376,-232.23784847,0.00016477,2]
[365743650,1749867031385,-1000.0,0.00016563,2]
[365743651,1749867031395,-452.91,0.00016563,2]
[365743652,1749867031404,-427.11,0.00016577,2]
[365743653,1749867031413,-178.2,0.00016578,2]
[365743654,1749867031422,-197.22,0.00016595,2]
[365743655,1749867031432,-400.0,0.00016597,2]
[365743656,1749867031441,-1854.20737878,0.00016597,2]
[365743657,1749867031524,-888.10262122,0.00016597,2]
[365743658,1749867031533,-397.08255878,0.00016598,2]
[365743659,1749867031631,-573.57744122,0.00016598,2]
[365743660,1749867031641,-168.07342244,0.000168,2]
[365743686,1749867037599,-331.92657756,0.000168,2]
[365743687,1749867037610,-500.0,0.000168,2]
[365743688,1749867037620,-7513.54,0.00016808,2]
[365743689,1749867037631,-218.0,0.00016858,4]
[365743690,1749867037641,-684.52916754,0.00017,5]
[365744130,1749867042445,-320.96167396,0.00016377,2]
[365744131,1749867042454,-154.51048311,0.00017,5]
[365744132,1749867042465,-873.04153788,0.00017,5]
[365744426,1749867045429,-1287.91881147,0.00017,5]
[365744428,1749867045439,-2346.55907732,0.00017,2]
[365744430,1749867045449,-302.67,0.00017102,2]
[365744432,1749867045459,-302.75,0.00017102,2]
[365744434,1749867045469,-305.3,0.00017102,2]
[365744476,1749867045861,-301.57,0.00017102,2]
[365744478,1749867045870,-22916.38254938,0.00017103,2]
[365744480,1749867045881,-705.32530926,0.00017103,2]
[365744483,1749867045894,-278.29214136,0.00017103,2]
[365744485,1749867045904,-302.8,0.00017103,2]
[365744487,1749867045915,-119.76945454,0.00017107,2]
[365744502,1749867046073,-80.23054546,0.00017107,2]
[365744504,1749867046082,-300.34,0.00017206,2]
[365744506,1749867046092,-305.54,0.00017276,2]
[365744508,1749867046101,-304.49,0.00017276,2]
[365744510,1749867046112,-304.39,0.00017276,2]
[365744512,1749867046122,-75.71402406,0.00017303,2]
[365744514,1749867046134,-590.28597594,0.00017303,2]
[365744516,1749867046143,-910.59,0.00017307,2]
[365744518,1749867046152,-1994.52,0.00017311,2]
[365744520,1749867046161,-218.0,0.00017312,4]
[365744522,1749867046171,-555.15558203,0.00017315,2]
[365744526,1749867046197,-153.33441797,0.00017315,2]
[365744528,1749867046206,-250.0,0.00017343,2]
[365744530,1749867046216,-151.0,0.00017357,2]
[365744532,1749867046225,-574.79807461,0.00017357,2]
[365744534,1749867046237,-588.748,0.00017357,2]
[365744537,1749867046248,-794.30992539,0.00017357,2]
[365744539,1749867046258,-478.69007461,0.00017357,2]
[365744573,1749867071404,201.99998,0.00015041,2]
[365744574,1749867128569,324.0,0.00016002,2]
[365744575,1749867136351,165.0,0.00016002,2]
[365744576,1749867215507,623.73,0.00015077,2]
[365744577,1749867247599,308.0,0.00016002,2]
[365744578,1749867261129,165.0,0.00016002,2]
[365744579,1749867305507,293.0,0.00016002,3]
[365744580,1749867312651,165.0,0.00016002,3]
[365744581,1749867368144,278.0,0.00016002,3]
[365744582,1749867374845,74.45299883,0.00016002,3]
[365744584,1749867427354,-90.54700117,0.00016002,3]
[365744585,1749867427377,-165.89234377,0.00016002,3]
[365744586,1749867430074,-98.10765623,0.00016002,3]
[365744600,1749867611766,205.0,0.00015766,2]
[365744601,1749867744947,440.413133,0.00015921,2]
[365744610,1749867974211,203.0,0.00015213,2]
[365744611,1749867974248,203.0,0.00015665,2]
[365744616,1749868035223,1305.2911623,0.0002,30]
[365744646,1749868200776,154.9,0.00013699,2]
[365744680,1749868232489,-251.0,0.00016002,3]
[365744681,1749868232499,-165.0,0.00016002,3]
[365744682,1749868232508,-203.0,0.00016118,3]
[365744683,1749868232517,-156.19,0.00016492,2]
[365744684,1749868232526,-2467.64,0.00016508,2]
[365744685,1749868232536,-203.0,0.0001657,3]
[365744686,1749868232546,-187.1,0.00016573,2]
[365744687,1749868232555,-197.23,0.00016769,2]
[365744688,1749868232564,-300.0,0.00016772,2]
[365744689,1749868232573,-3278.29664442,0.00016773,2]
[365744690,1749868232585,-574.42573208,0.00016773,2]
[365744691,1749868232596,-2644.30821749,0.00016773,2]
[365744692,1749868232607,-2311.53454211,0.00016773,2]
[365744693,1749868232620,-567.02785561,0.00016773,2]
[365744694,1749868232631,-673.93286093,0.00016773,2]
[365744695,1749868232646,-7278.59414736,0.00016773,2]
[365744696,1749868232655,-1465.55677845,0.00016773,2]
[365744699,1749868237577,-375.11531255,0.00016773,2]
[365744888,1749868239865,-983.54,0.00016773,2]
[365744895,1749868239922,-6711.6636735,0.00016773,2]
[365745301,1749868245580,-1152.97210044,0.00016773,2]
[365745302,1749868246503,-1108.66553001,0.00016773,2]
[365745303,1749868271632,255.0,0.00015213,2]
[365745304,1749868442851,592.54,0.00014616,2]
[365745305,1749868443528,-238.0,0.00016002,3]
[365745306,1749868443551,-29.14722431,0.00016002,3]
[365745308,1749868445352,-136.85277569,0.00016002,3]
[365745309,1749868445985,98.78507525,0.00016002,3]
[365745310,1749868450042,-127.21492475,0.00016002,3]
[365745313,1749868501978,710.056741,0.00015942,2]
[365745314,1749868569133,-181.88352571,0.00016002,3]
[365745315,1749868571961,-33.11647429,0.00016002,3]
[365745316,1749868586631,181.883526,0.00015941,2]
[365745317,1749868692210,200.0,0.00015022,2]
[365745318,1749868692477,200.0,0.00015477,2]
[365745319,1749868692755,200.0,0.00015931,3]
[365745320,1749868752638,2000.0,0.0002,30]
[365745334,1749868823658,535.04342,0.00016001,5]
[365745335,1749868823688,535.04342,0.00016001,5]
[365745336,1749868823770,535.04343,0.00016001,5]
[365745337,1749869008172,500.0,0.00015353,2]
[365745338,1749869008966,-204.0,0.00016002,3]
[365745339,1749869013841,300.0,0.0002,30]
[365745340,1749869013878,200.0,0.00015353,2]
[365745341,1749869033267,490.0,0.0002,30]
[365745342,1749869051607,200.0,0.00015385,2]
[365745343,1749869051859,200.0,0.0001585,2]
[365745344,1749869053326,255.001012,0.00015941,2]
[365745345,1749869119255,500.0,0.0002,30]
[365745346,1749869129614,500.0,0.0002,30]
[365745347,1749869130807,500.0,0.0002,30]
[365745348,1749869131692,500.0,0.0002,30]
[365745349,1749869132515,500.0,0.0002,30]
[365745350,1749869133209,500.0,0.0002,30]
[365745351,1749869133904,500.0,0.0002,30]
[365745354,1749869158474,500.0,0.0002,30]
[365745355,1749869158528,500.0,0.0002,30]
[365745356,1749869159078,500.0,0.0002,30]
[365745357,1749869159827,500.0,0.0002,30]
[365745358,1749869160151,500.0,0.0002,30]
[365745359,1749869160626,500.0,0.0002,30]
[365745360,1749869161169,500.0,0.0002,30]
[365745361,1749869161626,500.0,0.0002,30]
[365745362,1749869164147,500.0,0.0002,30]
[365745363,1749869165001,500.0,0.0002,30]
[365745364,1749869165850,500.0,0.0002,30]
[365745365,1749869167124,500.0,0.0002,30]
[365745366,1749869167729,500.0,0.0002,30]
[365745367,1749869169274,500.0,0.0002,30]
[365745368,1749869169349,500.0,0.0002,30]
[365745369,1749869170128,500.0,0.0002,30]
[365745370,1749869170894,500.0,0.0002,30]
[365745371,1749869171588,500.0,0.0002,30]
[365745372,1749869172555,500.0,0.0002,30]
[365745373,1749869172884,500.0,0.0002,30]
[365745374,1749869173484,500.0,0.0002,30]
[365745375,1749869174092,500.0,0.0002,30]
[365745376,1749869174646,500.0,0.0002,30]
[365745377,1749869175276,500.0,0.0002,30]
[365745378,1749869175745,500.0,0.0002,30]
[365745379,1749869176275,500.0,0.0002,30]
[365745380,1749869176686,500.0,0.0002,30]
[365745381,1749869177216,500.0,0.0002,30]
[365745382,1749869177639,500.0,0.0002,30]
[365745383,1749869180633,500.0,0.0002,30]
[365745387,1749869189488,500.0,0.0002,30]
[365745388,1749869190610,500.0,0.0002,30]
[365745389,1749869200923,777.01698628,0.0002,30]